fUST/lending_fUST_20250414
["ID","MTS","AMOUNT","RATE_DAILY","PERIOD"]
[357965299,1744625431951,-18742.69761781,0.00027067,2]
[357965300,1744625431968,-928.14550992,0.00027067,2]
[357965350,1744625437906,-839.47539771,0.00024898,2]
[357965352,1744625437914,-151.0,0.00027056,7]
[357965354,1744625437923,-16745.40460229,0.00027067,2]
[357965479,1744625440081,-210.103787,0.00027056,7]
[357965482,1744625440092,-3218.40299944,0.00027067,2]
[357966055,1744625445861,-3375.99999216,0.00027067,2]
[357966073,1744625534019,-225.92606092,0.00024898,2]
[357966075,1744625690279,-193.2661,0.00024898,2]
[357966077,1744625851831,-154.9368,0.00024798,2]
[357966090,1744626365115,-300.0,0.000247,4]
[357966099,1744626532275,1640.09838356,0.00015,2]
[357966147,1744626631888,-266.70247594,0.00022798,2]
[357966148,1744626631899,-28.861729,0.000247,4]
[357966149,1744626631909,-845.0632,0.00024798,2]
[357966150,1744626631920,-160.0,0.00024816,2]
[357966151,1744626631929,-640.79045575,0.00024898,2]
[357966152,1744626631940,-211.1174264,0.00024924,2]
[357966153,1744626631949,-674.98242716,0.00025,2]
[357966154,1744626631958,-300.0,0.00025319,2]
[357966155,1744626631968,-300.0,0.00025319,2]
[357966156,1744626631978,-422.36615131,0.00025319,2]
[357966157,1744626631988,-500.0,0.00025319,2]
[357966158,1744626631998,-16786.831267,0.0002532,2]
[357966159,1744626632007,-371.4758678,0.00025821,2]
[357966160,1744626632017,-1000.0,0.00025884,2]
[357966162,1744626632026,-268.267145,0.00025884,2]
[357966164,1744626632035,-672.15509763,0.000269,7]
[357966165,1744626632044,-341.70127749,0.00026955,2]
[357966166,1744626632054,-169.89024459,0.00026956,2]
[357966167,1744626632063,-13673.03843602,0.00026956,2]
[357966217,1744626637936,-2100.2269992,0.00026956,2]
[357966355,1744626641396,-0.00718411,0.00026956,2]
[357966500,1744626643086,-423.12000014,0.00026956,2]
[357966512,1744626643192,-329.99917035,0.00026956,2]
[357966515,1744626643204,-18754.04983708,0.00026956,2]
[357966813,1744626646086,-231243.18426357,0.00026956,2]
[357966815,1744626646098,-275.16655845,0.00026956,2]
[357966826,1744626646194,-385.22300047,0.00026956,2]
[357967783,1744627832127,-677.63384869,0.00024756,2]
[357967785,1744627832138,-177.80165062,0.00024856,2]
[357967787,1744627832147,-300.0,0.00025828,2]
[357967789,1744627832156,-160.0,0.00026445,2]
[357967791,1744627832166,-300.0,0.00026855,2]
[357967793,1744627832175,-3156.7225132,0.00026856,2]
[357967794,1744627832184,-476.25215562,0.00026856,3]
[357967797,1744627832193,-186337.89874116,0.00026856,2]
[357967799,1744627832205,-22455.59223111,0.00026856,2]
[357967868,1744627838197,-600.48369606,0.00026855,2]
[357967870,1744627838207,-500.0,0.00026855,2]
[357967872,1744627838217,-433.17566113,0.00026856,2]
[357967874,1744627838228,-2014.40851161,0.00026856,2]
[357967877,1744627838248,-1316.49258362,0.00026856,2]
[357967889,1744627838356,-2016.07685197,0.00026856,2]
[357967891,1744627838368,-416.351307,0.00026856,2]
[357967894,1744627838383,-500.0,0.00026856,2]
[357967897,1744627838396,-683.4702858,0.00026856,2]
[357967966,1744627840350,-994.5,0.00026856,2]
[357967967,1744627840404,-9598.5326794,0.00026856,2]
[357967968,1744627840458,-887.82692852,0.00026856,2]
[357968105,1744627843234,-2089.42455252,0.00026856,2]
[357968114,1744627843394,-313.61534488,0.00026856,2]
[357968313,1744627846177,-36964.22312609,0.00026856,2]
[357968319,1744628357358,-151.1046,0.00025849,2]
[357968324,1744628672531,504.22,0.00025,120]
[357968340,1744629032412,-4000.0,0.000258,2]
[357968341,1744629032422,-177.31,0.000258,2]
[357968384,1744629038500,-323.35,0.000258,2]
[357968385,1744629038509,-300.0,0.00025848,2]
[357968386,1744629038519,-300.0,0.00025848,2]
[357968387,1744629038529,-154.71305417,0.00025848,2]
[357968388,1744629038538,-156.31314247,0.00025848,2]
[357968389,1744629038548,-500.0,0.00025848,2]
[357968390,1744629038558,-5728.4711653,0.00025849,2]
[357968391,1744629038567,-160.0,0.00026677,2]
[357968392,1744629038576,-2000.0,0.000268,2]
[357968394,1744629038586,-173.93920973,0.00026837,2]
[357968395,1744629038595,-44153.2674332,0.00026846,2]
[357968396,1744629038604,-6076.45153548,0.00026856,2]
[357968492,1744629040588,-277.22977943,0.000269,7]
[357969012,1744629493272,1463.62,0.00025,120]
[357969116,1744629768935,200.0,0.00025,120]
[357969136,1744630086887,-201.14950577,0.0002489,2]
[357969140,1744630151975,-492.42498577,0.00019976,2]
[357969141,1744630152001,-300.0,0.00019976,2]
[357969142,1744630152026,-892.14251423,0.00019977,2]
[357969184,1744630232451,-300.0,0.00019976,2]
[357969186,1744630232461,-300.0,0.00019976,2]
[357969188,1744630232471,-11884.88965637,0.00019977,2]
[357969190,1744630232482,-27494.70308339,0.0002,2]
[357969191,1744630232492,-1803.70307457,0.00020603,2]
[357969192,1744630232501,-250.0,0.00020703,2]
[357969193,1744630232511,-280.0,0.00021752,2]
[357969194,1744630232521,-420.0,0.00021857,2]
[357969195,1744630232530,-382.23673118,0.0002336,2]
[357969196,1744630232542,-1421.46634337,0.0002336,2]
[357969197,1744630232552,-587.0,0.00023914,2]
[357969198,1744630232562,-691.40074961,0.000242,5]
[357969199,1744630232572,-691.40074949,0.000242,5]
[357969200,1744630232583,-691.40074949,0.000242,5]
[357969201,1744630232593,-691.40074949,0.000242,5]
[357969202,1744630232602,-691.40074949,0.000242,5]
[357969203,1744630232611,-691.40074949,0.000242,5]
[357969204,1744630232621,-152.0,0.00024326,2]
[357969205,1744630232631,-500.0,0.00024658,2]
[357969206,1744630232641,-500.0,0.00024658,2]
[357969207,1744630232650,-265.05855903,0.00024658,2]
[357969208,1744630232660,-691.40074949,0.00024831,5]
[357969209,1744630232670,-185.16929688,0.00024889,2]
[357969210,1744630232681,-635.23258878,0.00024889,2]
[357969211,1744630232691,-7791.85872104,0.0002489,2]
[357969212,1744630232700,-3933.5206736,0.0002489,3]
[357969213,1744630232710,-4139.56506856,0.0002489,2]
[357969214,1744630232721,-2007.73760735,0.0002489,2]
[357969215,1744630232733,-7923.98823089,0.0002489,2]
[357969216,1744630232745,-59372.550167,0.0002489,2]
[357969217,1744630232755,-11696.16809343,0.00025,2]
[357969218,1744630232764,-4037.5248222,0.00025406,2]
[357969219,1744630232774,-691.40074949,0.00025486,6]
[357969220,1744630232784,-57720.7207997,0.00025735,2]
[357969221,1744630232794,-18468.4500933,0.00025746,2]
[357969222,1744630232803,-735.2857854,0.00025746,2]
[357969223,1744630232813,-7757.0,0.00026,2]
[357969224,1744630232822,-153.0,0.00026078,2]
[357969225,1744630232832,-156.8657715,0.00026078,2]
[357969226,1744630232842,-156.8657715,0.00026078,2]
[357969227,1744630232853,-1803.70307455,0.00026116,2]
[357969228,1744630232863,-691.40074949,0.00026141,6]
[357969229,1744630232874,-823.0,0.00026166,2]
[357969230,1744630232884,-57720.7207997,0.00026416,2]
[357969231,1744630232894,-50000.0,0.00026426,2]
[357969232,1744630232904,-1022.15544205,0.0002658,2]
[357969233,1744630232913,-160.0,0.00026591,2]
[357969234,1744630232923,-1022.15544202,0.00026597,2]
[357969235,1744630232932,-153.0,0.000266,2]
[357969236,1744630232942,-156.8657715,0.000266,2]
[357969237,1744630232951,-156.8657715,0.000266,2]
[357969238,1744630232961,-153.0,0.000266,2]
[357969239,1744630232971,-156.8657715,0.000266,2]
[357969240,1744630232981,-153.0,0.000266,2]
[357969241,1744630232990,-1022.15544202,0.00026614,2]
[357969242,1744630233000,-1022.15544202,0.0002663,2]
[357969243,1744630233011,-1022.15544202,0.00026647,2]
[357969244,1744630233020,-1000.0,0.00026656,2]
[357969245,1744630233029,-500.0,0.00026656,2]
[357969246,1744630233039,-20524.79753067,0.00026677,2]
[357969283,1744630238556,-37195.92326903,0.00026677,2]
[357969285,1744630238567,-15642.58057229,0.00026687,2]
[357969287,1744630238577,-151.0,0.00026721,2]
[357969289,1744630238587,-207.4,0.00026721,2]
[357969291,1744630238597,-57494.48750938,0.00026726,2]
[357969293,1744630238610,-226.23329032,0.00026726,2]
[357969295,1744630238620,-151.0,0.00026727,7]
[357969298,1744630238630,-153.46271,0.00026736,7]
[357969299,1744630238639,-6.28044978,0.00026736,2]
[357969302,1744630238656,-363.62043122,0.00026736,2]
[357969304,1744630238666,-369.900881,0.00026736,2]
[357969306,1744630238675,-369.900881,0.00026736,2]
[357969308,1744630238684,-369.900881,0.00026736,2]
[357969309,1744630238693,-151.0,0.00026736,7]
[357969310,1744630238703,-151.0,0.00026736,7]
[357969311,1744630238712,-23313.32929343,0.00026737,2]
[357969312,1744630238724,-47200.06001035,0.00026737,2]
[357969313,1744630238735,-2632.55469546,0.00026737,2]
[357969314,1744630238747,-462.83688589,0.00026737,2]
[357969315,1744630238758,-30550.98684628,0.00026737,2]
[357969316,1744630238804,-8916.92800446,0.00026737,2]
[357969450,1744630240833,-0.0088763,0.00026737,2]
[357969453,1744630240846,-2364.73698683,0.00026737,2]
[357969467,1744630240983,-151.0,0.00026747,7]
[357969469,1744630240993,-151.0,0.00026747,7]
[357969471,1744630241003,-151.0,0.00026747,7]
[357969473,1744630241013,-369.900881,0.00026747,2]
[357969475,1744630241022,-369.900881,0.00026747,2]
[357969477,1744630241032,-151.0,0.00026747,7]
[357969479,1744630241041,-151.0,0.00026756,2]
[357969481,1744630241052,-151.0,0.00026756,2]
[357969483,1744630241063,-151.0,0.00026756,7]
[357969486,1744630241073,-151.0,0.00026756,7]
[357969488,1744630241082,-151.0,0.00026756,7]
[357969490,1744630241092,-152.537558,0.00026756,7]
[357969491,1744630241101,-369.900881,0.00026756,2]
[357969494,1744630241112,-369.900881,0.00026756,2]
[357969495,1744630241121,-151.0,0.00026756,7]
[357969497,1744630241131,-500.0,0.00026756,2]
[357969500,1744630241142,-151.0,0.00026756,2]
[357969502,1744630241152,-151.0,0.00026756,2]
[357969504,1744630241161,-151.0,0.00026756,2]
[357969506,1744630241171,-40460.8594448,0.00026756,2]
[357969508,1744630241182,-856.81486817,0.00026756,2]
[357969763,1744630243623,-17197.20127327,0.00026756,2]
[357969908,1744630246570,-943.7425925,0.00026756,2]
[357969909,1744630246620,-2178.27409384,0.00026756,2]
[357969935,1744631432693,-281.37913336,0.00019,2]
[357969936,1744631432705,-200.0,0.00019,2]
[357969937,1744631432715,-10.56061771,0.00019,2]
[357969983,1744631438843,-1346.19752829,0.00019,2]
[357969985,1744631438855,-539.75117459,0.00019,2]
[357969990,1744631438894,-202.25088345,0.00019,2]
[357969992,1744631438904,-160.0,0.00019939,2]
[357969994,1744631438915,-151.0,0.00019957,2]
[357969996,1744631438925,-49.95135521,0.00019957,2]
[357969999,1744631438937,-101.04864479,0.00019957,2]
[357970001,1744631438948,-151.0,0.00019957,2]
[357970003,1744631438959,-207.4,0.00019957,2]
[357970005,1744631438969,-300.0,0.00019966,2]
[357970007,1744631438979,-300.0,0.00019967,2]
[357970009,1744631438988,-500.0,0.00019967,2]
[357970011,1744631438998,-500.0,0.00019967,2]
[357970013,1744631439009,-500.0,0.00019967,2]
[357970015,1744631439019,-500.0,0.00019967,2]
[357970017,1744631439028,-257.95074397,0.00019967,2]
[357970019,1744631439038,-500.0,0.00019967,2]
[357970021,1744631439049,-637.40428315,0.00019967,2]
[357970023,1744631439059,-500.0,0.00019967,2]
[357970025,1744631439069,-279.75904246,0.00019967,2]
[357970028,1744631439081,-207.36742892,0.00019967,2]
[357970030,1744631439091,-500.0,0.00019967,2]
[357970032,1744631439101,-500.0,0.00019967,2]
[357970034,1744631439110,-500.0,0.00019967,2]
[357970036,1744631439120,-500.0,0.00019967,2]
[357970038,1744631439129,-500.0,0.00019967,2]
[357970040,1744631439141,-500.0,0.00019967,2]
[357970042,1744631439150,-500.0,0.00019967,2]
[357970044,1744631439160,-500.0,0.00019967,2]
[357970046,1744631439170,-500.0,0.00019967,2]
[357970048,1744631439180,-500.0,0.00019967,2]
[357970050,1744631439189,-500.0,0.00019967,2]
[357970052,1744631439199,-500.0,0.00019967,2]
[357970054,1744631439209,-500.0,0.00019967,2]
[357970057,1744631439219,-500.0,0.00019967,2]
[357970059,1744631439228,-500.0,0.00019967,2]
[357970061,1744631439238,-500.0,0.00019967,2]
[357970063,1744631439248,-500.0,0.00019967,2]
[357970065,1744631439257,-500.0,0.00019967,2]
[357970067,1744631439267,-500.0,0.00019967,2]
[357970069,1744631439277,-169.51591284,0.00019967,2]
[357970071,1744631439287,-500.0,0.00019967,2]
[357970073,1744631439296,-500.0,0.0002,2]
[357970075,1744631439305,-500.0,0.0002,2]
[357970077,1744631439315,-502.58819591,0.0002,2]
[357970079,1744631439324,-500.0,0.0002,2]
[357970081,1744631439334,-552.10236871,0.0002,2]
[357970083,1744631439343,-500.0,0.0002,2]
[357970085,1744631439353,-500.0,0.0002,2]
[357970087,1744631439362,-500.0,0.0002,2]
[357970089,1744631439372,-500.0,0.0002,2]
[357970091,1744631439381,-500.0,0.0002,2]
[357970093,1744631439391,-500.0,0.0002,2]
[357970096,1744631439404,-500.0,0.0002,2]
[357970098,1744631439413,-500.0,0.0002,2]
[357970100,1744631439423,-519.56836175,0.0002,2]
[357970102,1744631439433,-500.0,0.0002,2]
[357970104,1744631439444,-500.0,0.0002,2]
[357970106,1744631439454,-215.0738,0.00021326,2]
[357970108,1744631439464,-420.0,0.00021742,2]
[357970110,1744631439474,-420.0,0.00021847,2]
[357970112,1744631439484,-370.1262,0.00022695,2]
[357970114,1744631439495,-227.5000399,0.00023551,2]
[357970117,1744631439505,-287.0,0.00023675,2]
[357970119,1744631439516,-587.0,0.00023904,2]
[357970121,1744631439526,-1317.279682,0.00023947,2]
[357970123,1744631439539,-8382.6420701,0.00023947,2]
[357970125,1744631439549,-1127.31442162,0.000241,2]
[357970127,1744631439559,-151.0,0.000242,2]
[357970129,1744631439568,-151.0,0.000242,2]
[357970131,1744631439577,-198.0,0.000242,2]
[357970133,1744631439587,-151.0,0.000242,2]
[357970135,1744631439597,-506.38569468,0.000242,5]
[357970137,1744631439607,-506.38569456,0.000242,5]
[357970139,1744631439617,-506.38569456,0.000242,5]
[357970141,1744631439627,-506.38569456,0.000242,5]
[357970144,1744631439638,-151.0,0.00024255,2]
[357970146,1744631439647,-298.77005333,0.00024255,2]
[357970148,1744631439658,-151.0,0.00024255,2]
[357970150,1744631439668,-151.0,0.0002431,2]
[357970152,1744631439678,-151.0,0.0002431,2]
[357970154,1744631439688,-151.0,0.00024364,2]
[357970156,1744631439698,-248.74600693,0.00024364,2]
[357970158,1744631439707,-506.38569456,0.00024383,5]
[357970160,1744631439717,-162.66225617,0.00024419,2]
[357970162,1744631439726,-500.0,0.00024658,2]
[357970164,1744631439736,-500.0,0.00024658,2]
[357970166,1744631439746,-506.38569456,0.00025003,5]
[357970168,1744631439757,-2.32052766,0.00025105,2]
[357970844,1744631446693,-247.67947234,0.00025105,2]
[357970846,1744631446704,-1000.0,0.00025479,2]
[357970848,1744631446714,-500.0,0.00025479,2]
[357970850,1744631446724,-1000.0,0.00025479,2]
[357970852,1744631446735,-549.01646729,0.00025479,2]
[357970854,1744631446747,-1000.0,0.00025479,2]
[357970855,1744631446757,-500.0,0.00025479,2]
[357970856,1744631446767,-442.80002178,0.00025479,2]
[357970857,1744631446779,-500.0,0.00025479,2]
[357970858,1744631446789,-399.8614714,0.00025479,2]
[357970859,1744631446799,-500.0,0.00025479,2]
[357970860,1744631446810,-506.38569456,0.00025624,6]
[357970861,1744631446820,-156.4475991,0.00026078,2]
[357970862,1744631446831,-823.0,0.00026155,2]
[357970864,1744631446840,-506.38569456,0.00026245,6]
[357970865,1744631446850,-1127.31442159,0.00026357,2]
[357970866,1744631446860,-500.0,0.00026416,2]
[357970867,1744631446870,-169.89024459,0.0002654,2]
[357970868,1744631446879,-500.0,0.00026616,2]
[357970869,1744631446891,-252.86408636,0.00026616,2]
[357970870,1744631446900,-40404.5045598,0.00026617,2]
[357970871,1744631446910,-248.83943048,0.0002663,2]
[357970872,1744631446920,-65887.43539967,0.00026637,2]
[357970873,1744631446960,-10155.03519567,0.00026637,2]
[357971136,1744631739074,7085.5732663,0.00025,120]
[357971153,1744632636362,-154.9368,0.00024649,2]
[357971156,1744632636375,-1059.98261667,0.00024649,2]
[357971158,1744632636392,-268.267145,0.00024749,2]
[357971160,1744632636402,-371.4758678,0.00025235,2]
[357971162,1744632636412,-160.0,0.00025344,2]
[357971164,1744632636422,-300.0,0.00025485,2]
[357971165,1744632636431,-300.0,0.00025485,2]
[357971166,1744632636441,-422.36615131,0.00025486,2]
[357971167,1744632636451,-500.0,0.00025486,2]
[357971168,1744632636462,-500.0,0.00025486,2]
[357971169,1744632636472,-296.6128792,0.00025486,2]
[357971170,1744632636482,-500.0,0.00025486,2]
[357971171,1744632636492,-16786.831267,0.00025487,2]
[357971173,1744632636502,-1000.0,0.00025549,2]
[357971175,1744632636512,-585.47738358,0.00025558,2]
[357971177,1744632636522,-500.0,0.00026257,2]
[357971179,1744632636532,-206.36443499,0.00026436,2]
[357971181,1744632636541,-206.36443497,0.00026445,2]
[357971183,1744632636551,-206.36443497,0.00026455,2]
[357971184,1744632636561,-206.36443497,0.00026464,2]
[357971185,1744632636570,-206.36443497,0.00026473,2]
[357971186,1744632636580,-350.000001,0.000265,2]
[357971188,1744632636590,-406.51307164,0.00026518,2]
[357971191,1744632636601,-527.00486045,0.00026525,2]
[357971193,1744632636611,-17777.79539022,0.00026526,2]
[357971246,1744632637833,-2286.29673295,0.00026526,2]
[357971248,1744632637846,-4245.72173351,0.00026526,2]
[357971341,1744632640202,-160.0,0.00025335,2]
[357971343,1744632640212,-540.2151947,0.00026526,2]
[357971345,1744632640226,-1568.07650326,0.00026526,2]
[357971348,1744632640239,-570.60136798,0.00026526,2]
[357971606,1744632643033,-5559.05037223,0.00026526,2]
[357971770,1744633681228,6116.30354108,0.00016,2]
[357971776,1744633731115,1162.5149253,0.00015,2]
[357971777,1744633731142,13197.38669114,0.00015,2]
[357971778,1744633738694,-151.1046,0.00022962,2]
[357971799,1744633831971,-478.2317938,0.00022962,2]
[357971801,1744633831981,-211.1174264,0.00023547,2]
[357971803,1744633831990,-250.0,0.00023609,2]
[357971805,1744633832000,-975.94115626,0.00023883,2]
[357971807,1744633832010,-171.06423259,0.00023885,2]
[357971808,1744633832020,-300.0,0.00023982,2]
[357971811,1744633832030,-6118.48554153,0.00023983,2]
[357971813,1744633832046,-4069.87040274,0.00023983,2]
[357971815,1744633832057,-4690.68106808,0.00023983,3]
[357971817,1744633832067,-50000.0,0.00023983,2]
[357971819,1744633832077,-500.0,0.00023983,2]
[357971821,1744633832087,-500.0,0.00023983,2]
[357971823,1744633832097,-500.0,0.00023983,2]
[357971825,1744633832106,-523.79829047,0.00023983,2]
[357971826,1744633832116,-500.0,0.00023983,2]
[357971827,1744633832126,-500.0,0.00023983,2]
[357971828,1744633832136,-523.79829047,0.00023983,2]
[357971829,1744633832145,-500.0,0.00023983,2]
[357971830,1744633832157,-179.77941715,0.00023983,2]
[357971831,1744633832167,-500.0,0.00023983,2]
[357971832,1744633832178,-523.79829047,0.00023983,2]
[357971833,1744633832187,-500.0,0.00023983,2]
[357971834,1744633832199,-500.0,0.00023983,2]
[357971835,1744633832209,-523.79829047,0.00023983,2]
[357971836,1744633832219,-500.0,0.00023983,2]
[357971837,1744633832229,-200.0,0.00023983,2]
[357971838,1744633832240,-500.0,0.00023983,2]
[357971839,1744633832250,-523.79829047,0.00023983,2]
[357971840,1744633832260,-500.0,0.00023983,2]
[357971841,1744633832270,-500.0,0.00023983,2]
[357971842,1744633832281,-523.79829047,0.00023983,2]
[357971843,1744633832291,-500.0,0.00023983,2]
[357971844,1744633832301,-523.79829047,0.00023983,2]
[357971845,1744633832311,-500.0,0.00023983,2]
[357971846,1744633832320,-523.79829047,0.00023983,2]
[357971847,1744633832330,-500.0,0.00023983,2]
[357971848,1744633832340,-523.79829047,0.00023983,2]
[357971849,1744633832349,-523.79829047,0.00023983,2]
[357971850,1744633832361,-500.0,0.00023983,2]
[357971851,1744633832371,-523.79829047,0.00023983,2]
[357971852,1744633832382,-523.79829047,0.00023983,2]
[357971853,1744633832391,-500.0,0.00023983,2]
[357971854,1744633832402,-523.79829047,0.00023983,2]
[357971855,1744633832414,-523.79829047,0.00023983,2]
[357971856,1744633832424,-500.0,0.00023983,2]
[357971857,1744633832434,-523.79829047,0.00023983,2]
[357971858,1744633832444,-523.79829047,0.00023983,2]
[357971859,1744633832454,-500.0,0.00023983,2]
[357971860,1744633832464,-523.79829047,0.00023983,2]
[357971861,1744633832474,-523.79829047,0.00023983,2]
[357971862,1744633832679,-500.0,0.00023983,2]
[357971863,1744633832691,-523.79829047,0.00023983,2]
[357971864,1744633832701,-629.47349778,0.00023983,2]
[357971865,1744633832712,-523.79829047,0.00023983,2]
[357971866,1744633832722,-523.79829047,0.00023983,2]
[357971867,1744633832732,-500.0,0.00023983,2]
[357971868,1744633832741,-523.79829047,0.00023983,2]
[357971869,1744633832751,-523.79829047,0.00023983,2]
[357971870,1744633832760,-523.79829047,0.00023983,2]
[357971871,1744633832770,-523.79829047,0.00023983,2]
[357971872,1744633832780,-523.79829047,0.00023983,2]
[357971873,1744633832790,-523.79829047,0.00023983,2]
[357971874,1744633832799,-523.79829047,0.00023983,2]
[357971875,1744633832809,-523.79829047,0.00023983,2]
[357971876,1744633832819,-523.79829047,0.00023983,2]
[357971877,1744633832828,-523.79829047,0.00023983,2]
[357971878,1744633832837,-523.79829047,0.00023983,2]
[357971879,1744633832847,-523.79829047,0.00023983,2]
[357971880,1744633832855,-523.79829047,0.00023983,2]
[357971881,1744633832864,-523.79829047,0.00023983,2]
[357971882,1744633832873,-523.79829047,0.00023983,2]
[357971883,1744633832883,-523.79829047,0.00023983,2]
[357971884,1744633832892,-523.79829047,0.00023983,2]
[357971885,1744633832903,-523.79829047,0.00023983,2]
[357971886,1744633832913,-523.79829047,0.00023983,2]
[357971887,1744633832923,-523.79829047,0.00023983,2]
[357971888,1744633832933,-523.79829047,0.00023983,2]
[357971889,1744633832943,-523.79829047,0.00023983,2]
[357971890,1744633832953,-523.79829047,0.00023983,2]
[357971891,1744633832963,-523.79829047,0.00023983,2]
[357971892,1744633832973,-523.79829047,0.00023983,2]
[357971893,1744633832984,-523.79829047,0.00023983,2]
[357971894,1744633832993,-523.79829047,0.00023983,2]
[357971895,1744633833003,-523.79829047,0.00023983,2]
[357971896,1744633833014,-523.79829047,0.00023983,2]
[357971897,1744633833025,-523.79829047,0.00023983,2]
[357971898,1744633833036,-523.79829047,0.00023983,2]
[357971899,1744633833047,-523.79829047,0.00023983,2]
[357971900,1744633833059,-523.79829047,0.00023983,2]
[357971901,1744633833069,-500.0,0.00023983,2]
[357971902,1744633833081,-500.0,0.00023983,2]
[357971903,1744633833092,-1913.71156174,0.00023983,2]
[357971904,1744633833102,-294.73497777,0.00023983,2]
[357971905,1744633833113,-1913.71156174,0.00023983,2]
[357971906,1744633833123,-1913.71156174,0.00023983,2]
[357971907,1744633833134,-1913.71156174,0.00023983,2]
[357971908,1744633833144,-1913.71156174,0.00023983,2]
[357971909,1744633833156,-1913.71156174,0.00023983,2]
[357971910,1744633833167,-1913.71156174,0.00023983,2]
[357971911,1744633833177,-1913.71156174,0.00023983,2]
[357971912,1744633833187,-1913.71156174,0.00023983,2]
[357971913,1744633833198,-1913.71156174,0.00023983,2]
[357971914,1744633833209,-1913.71156174,0.00023983,2]
[357971915,1744633833219,-1913.71156174,0.00023983,2]
[357971916,1744633833229,-1913.71156174,0.00023983,2]
[357971917,1744633833240,-1913.71156174,0.00023983,2]
[357971918,1744633833250,-1913.71156174,0.00023983,2]
[357971919,1744633833260,-1913.71156174,0.00023983,2]
[357971920,1744633833270,-1913.71156174,0.00023983,2]
[357971921,1744633833281,-1913.71156174,0.00023983,2]
[357971922,1744633833291,-1913.71156174,0.00023983,2]
[357971923,1744633833302,-1913.71156174,0.00023983,2]
[357971924,1744633833312,-1913.71156174,0.00023983,2]
[357971925,1744633833323,-1913.71156174,0.00023983,2]
[357971926,1744633833333,-1913.71156174,0.00023983,2]
[357971927,1744633833343,-1913.71156174,0.00023983,2]
[357971928,1744633833353,-1913.71156174,0.00023983,2]
[357971929,1744633833365,-1913.71156174,0.00023983,2]
[357971930,1744633833376,-1913.71156174,0.00023983,2]
[357971931,1744633833387,-1913.71156174,0.00023983,2]
[357971932,1744633833398,-1913.71156174,0.00023983,2]
[357971933,1744633833409,-1913.71156174,0.00023983,2]
[357971934,1744633833419,-1913.71156175,0.00023983,2]
[357971935,1744633833430,-1913.71156175,0.00023983,2]
[357971936,1744633833440,-1913.71156175,0.00023983,2]
[357971937,1744633833451,-1913.71156175,0.00023983,2]
[357971938,1744633833462,-1913.71156175,0.00023983,2]
[357971939,1744633833472,-100000.0,0.0002399,2]
[357971940,1744633833482,-500.0,0.00024,2]
[357971941,1744633833492,-500.0,0.0002425,2]
[357971942,1744633833500,-500.0,0.0002425,2]
[357971943,1744633833510,-500.0,0.0002425,2]
[357971944,1744633833519,-500.0,0.0002425,2]
[357971945,1744633833529,-500.0,0.0002425,2]
[357971946,1744633833539,-500.0,0.0002425,2]
[357971947,1744633833548,-500.0,0.0002425,2]
[357971948,1744633833559,-371.34950946,0.000243,5]
[357971949,1744633833570,-500.0,0.000243,2]
[357971950,1744633833580,-312.98275457,0.000243,2]
[357971951,1744633833590,-500.0,0.000243,2]
[357971952,1744633833601,-6483.4672715,0.00024316,2]
[357971953,1744633833611,-241.12492645,0.00024317,2]
[357971954,1744633833622,-500.0,0.00024317,2]
[357971955,1744633833634,-500.0,0.00024317,2]
[357971956,1744633833647,-500.57286579,0.00024317,2]
[357971957,1744633833659,-500.0,0.00024317,2]
[357971958,1744633833670,-500.0,0.00024357,2]
[357971959,1744633833682,-171.06423258,0.00024378,2]
[357971960,1744633833693,-160.0,0.0002444,2]
[357971961,1744633833703,-3032.1,0.0002444,2]
[357971962,1744633833714,-3032.1,0.0002444,2]
[357971963,1744633833725,-3032.1,0.0002444,2]
[357971964,1744633833735,-371.34950934,0.00024452,5]